bitfinex/quotes_ETHUSD_20220308
["timestamp","ask_amount","ask_price","bid_price","bid_amount"]
[1646734679669,0.97002,2578.6,2577.4,3.5453]
[1646734680075,0.97002,2578.6,2577.3,0.02170014]
[1646734680076,0.9704334,2578.4,2577.3,0.02170014]
[1646734680280,1.9707,2578.0,2577.3,0.02170014]
[1646734680472,1.0,2577.5,2577.3,0.02170014]
[1646734680774,3.97817567,2577.5,2577.3,1.4e-07]
[1646734681075,3.97817567,2577.5,2577.0,0.04321595]
[1646734681076,1.0,2577.4,2577.0,0.04321595]
[1646734681471,1.0,2577.3,2577.0,0.04321595]
[1646734681670,1.97082,2577.3,2577.0,0.04321595]
[1646734681908,2.27082,2577.3,2577.0,0.04321595]
[1646734682514,0.97082,2577.2,2577.0,0.04321595]
[1646734682714,3.2416,2577.3,2577.0,0.04321595]
[1646734683114,0.97082,2577.3,2577.0,0.04321595]
[1646734683323,0.97082,2577.3,2577.0,1.595e-05]
[1646734683714,1.97082,2577.3,2577.0,1.595e-05]
[1646734684114,1.0,2577.2,2577.0,1.595e-05]
[1646734684316,1.0,2577.2,2576.8,0.05721362]
[1646734685116,4.18319,2577.3,2576.8,0.05721362]
[1646734685117,1.0,2577.1,2576.8,0.05721362]
[1646734685319,0.97091,2577.0,2576.8,0.05721362]
[1646734685557,1.0,2576.9,2576.8,0.05721362]
[1646734686057,4.03911,2577.0,2576.8,0.05721362]
[1646734686058,4.73911,2577.0,2576.8,0.05721362]
[1646734686462,3.73911,2577.0,2576.8,0.05721362]
[1646734686662,0.97091,2577.0,2576.8,0.05721362]
[1646734686867,7.7015,2577.2,2576.8,0.05721362]
[1646734687069,3.8205,2577.6,2576.8,0.05721362]
[1646734687267,0.00459215,2577.6,2576.8,0.05721362]
[1646734687466,0.00459215,2577.6,2576.8,0.52321362]
[1646734687665,0.00459215,2577.6,2576.9,3.5]
[1646734687865,0.00459215,2577.6,2577.3,0.90389039]
[1646734688068,2.55314549,2578.1,2577.6,0.0079186]
[1646734688266,2.5347806,2578.1,2577.6,0.0079186]
[1646734688471,6.25790225,2578.1,2577.6,0.0079186]
[1646734688868,3.52342799,2578.1,2577.6,0.0079186]
[1646734689069,1.0,2577.7,2577.6,0.0079186]
[1646734689318,1.97081,2577.7,2577.6,0.0079186]
[1646734692816,1.97081,2577.7,2576.8,0.11005066]
[1646734692817,0.97091,2577.3,2576.8,0.05721362]
[1646734693058,0.97091,2577.3,2576.8,1.362e-05]
[1646734693059,4.4709762,2577.2,2576.8,1.362e-05]
[1646734693262,0.19556751,2577.2,2576.8,1.362e-05]
[1646734693462,1.0,2577.0,2576.8,1.362e-05]
[1646734693863,7.1379,2577.3,2576.8,1.362e-05]
[1646734693864,10.8444,2577.3,2576.8,1.362e-05]
[1646734694267,1.23230972,2576.8,2575.9,0.99650404]
[1646734694465,4.5,2577.0,2575.9,0.99650404]
[1646734694665,1.0,2577.0,2575.9,0.99650404]
[1646734694865,11.8444,2577.3,2575.9,0.99650404]
[1646734695165,10.8444,2577.3,2576.0,5.08443407]
[1646734695366,12.81521,2577.3,2576.0,3.5]
[1646734695765,0.89824863,2577.0,2576.0,3.5]
[1646734696816,0.89824863,2577.0,2576.4,0.00543709]
[1646734697409,1.94169,2577.1,2576.4,0.00543709]
[1646734697609,12.81517,2577.3,2576.4,0.00543709]
[1646734697812,10.8444,2577.3,2576.0,18.4657]
[1646734698009,10.8444,2577.3,2576.6,0.00543678]
[1646734699214,10.8444,2577.3,2576.8,0.00543638]
[1646734699614,11.72163996,2577.3,2576.8,0.00543638]
[1646734700015,12.69247996,2577.3,2576.8,0.00543638]
[1646734700215,12.69247996,2577.3,2576.2,0.02391494]
[1646734700415,12.69247996,2577.3,2576.9,0.00543623]
[1646734701068,13.66338996,2577.3,2576.9,0.00543623]
[1646734701267,13.79710671,2577.3,2576.9,0.00543623]
[1646734701470,13.79710671,2577.3,2576.2,0.02391494]
[1646734701666,14.79710671,2577.3,2577.0,0.00525676]
[1646734702068,1.0,2577.1,2577.0,0.00525676]
[1646734702269,2.0,2577.1,2577.0,0.00525676]
[1646734702669,0.97104,2576.9,2576.2,0.02391494]
[1646734703070,1.0,2576.6,2576.2,0.02391494]
[1646734703472,6.682,2576.9,2576.2,0.02391494]
[1646734703672,6.682,2576.9,2576.1,0.02379148]
[1646734704715,0.9393062,2576.5,2576.1,0.01742648]
[1646734705217,0.9393062,2576.5,2576.4,0.0054334]
[1646734705416,1.0,2576.7,2576.4,0.0054334]
[1646734706217,1.0,2576.7,2576.1,0.01742648]
[1646734706416,1.0,2576.7,2576.4,0.00543332]
[1646734706622,2.12365187,2576.7,2576.4,0.00543332]
[1646734707519,2.12365187,2576.7,2576.1,0.01742648]
[1646734707720,2.12365187,2576.7,2576.4,0.00543332]
[1646734708569,2.12365187,2576.7,2576.1,0.01742648]
[1646734708769,2.12365187,2576.7,2576.4,0.00543332]
[1646734709272,2.12365187,2576.7,2576.6,0.02361525]
[1646734709470,1.0,2576.7,2576.6,0.02361525]
[1646734710270,6.682,2576.9,2576.6,0.02361525]
[1646734711673,6.08396751,2576.8,2575.3,3.5]
[1646734711920,0.466,2576.7,2575.4,1.58461379]
[1646734712116,2.78866751,2576.7,2575.3,1.58461379]
[1646734712313,2.78866751,2576.7,2575.4,1.58460041]
[1646734712514,1.0,2576.6,2575.5,1.58460041]
[1646734712720,1.0,2576.6,2575.5,1.18347777]
[1646734712919,1.32266751,2576.7,2575.5,1.18347777]
[1646734712920,2.32266751,2576.7,2575.5,1.18347777]
[1646734713122,1.0,2576.5,2575.6,1.58453511]
[1646734713620,1.0,2576.5,2576.0,0.00543005]
[1646734714623,2.14984883,2576.5,2575.4,1.10474964]
[1646734714826,2.14984883,2576.5,2576.1,0.00542981]
[1646734715862,2.14984883,2576.5,2575.4,1.10474964]
[1646734716062,2.14984883,2576.5,2575.5,1.58457996]
[1646734716968,1.0,2576.5,2575.6,3.5]
[1646734717171,0.13819997,2576.6,2575.7,1.58457996]
[1646734717567,0.13819997,2576.6,2575.5,3.5]
[1646734717767,1.13819997,2576.6,2575.6,1.58448183]
[1646734718570,1.13819997,2576.6,2576.0,0.00542607]
[1646734719412,1.13819997,2576.6,2575.5,3.5]
[1646734719614,1.13819997,2576.6,2576.3,0.02006363]
[1646734720813,1.13819997,2576.6,2576.3,0.02548915]
[1646734721014,1.0,2576.5,2576.3,0.02548915]
[1646734721816,1.0,2576.5,2576.3,0.02006363]
[1646734722017,1.0,2576.5,2576.3,0.02548922]
[1646734723070,10.56671,2576.9,2576.3,0.02548922]
[1646734723071,0.11883693,2577.2,2576.3,0.02006363]
[1646734723272,1.2377375,2577.5,2576.6,0.01288418]
[1646734723273,0.00378689,2577.5,2576.6,0.01288418]
[1646734723475,0.00378689,2577.5,2576.7,0.97056]
[1646734723672,0.00378689,2577.5,2576.8,3.5]
[1646734723873,0.00378689,2577.5,2576.8,1.5839445]
[1646734724072,0.00378689,2577.5,2577.4,1.10686891]
[1646734724373,6.1319,2577.7,2577.4,1.10686891]
[1646734724572,0.00378799,2577.5,2577.4,1.10686891]
[1646734725372,1.0,2578.2,2577.4,1.10686891]
[1646734725672,0.00378836,2577.6,2577.4,1.10686891]
[1646734726674,1.01515007,2578.2,2577.4,1.10686891]
[1646734726675,1.0,2578.2,2577.4,1.10686891]
[1646734726915,0.00114909,2577.6,2577.1,3.5]
[1646734727116,0.00114909,2577.6,2576.8,5.44111]
[1646734727320,0.00114909,2577.6,2576.9,5.08379316]
[1646734727515,0.00114909,2577.6,2577.0,1.58379316]
[1646734727715,1.0,2578.2,2577.0,2.55438316]
[1646734727915,1.0,2578.2,2577.5,1.17196401]
[1646734727916,1.57739757,2578.2,2577.5,1.17196401]
[1646734728118,1.58213274,2578.2,2577.5,1.17196401]
[1646734728720,1.58213274,2578.2,2577.5,1.23040111]
[1646734729118,1.57739757,2578.2,2577.5,1.23040111]
[1646734729319,0.00118415,2578.0,2577.5,1.23040111]
[1646734730119,1.57739757,2578.2,2577.5,1.23040111]
[1646734730564,0.00390523,2577.9,2577.5,1.23040111]
[1646734731468,1.57739757,2578.2,2577.5,1.23040111]
[1646734731667,0.00419336,2577.8,2577.5,1.23040111]
[1646734732569,1.57739757,2578.2,2577.5,2.20092111]
[1646734732970,0.00419336,2577.8,2577.5,2.20092111]
[1646734733570,0.00419336,2577.8,2577.7,0.01981976]
[1646734733770,1.59416849,2578.2,2577.7,0.01981976]
[1646734733971,1.57739757,2578.2,2577.7,0.99032976]
[1646734734171,0.00419336,2577.8,2577.7,0.99032976]
[1646734734412,0.00419336,2577.8,2577.7,0.01981976]
[1646734735010,1.57739757,2578.2,2577.7,0.01981976]
[1646734735214,0.00115746,2577.9,2577.7,0.01981976]
[1646734736215,1.57739757,2578.2,2577.7,0.01981976]
[1646734736414,0.00115746,2577.9,2577.7,0.01981976]
[1646734736613,0.00115746,2577.9,2577.7,1.96093976]
[1646734737218,0.00115746,2577.9,2577.7,2.26093976]
[1646734737416,1.0,2578.5,2577.7,2.26093976]
[1646734737618,1.2262,2578.7,2577.7,2.26093976]
[1646734737619,0.00115528,2577.9,2577.7,2.26093976]
[1646734737821,1.2262,2578.7,2577.9,5.5011]
[1646734738072,1.0,2578.8,2578.7,1.08808882]
[1646734738771,1.0,2578.8,2578.4,0.9700826]
[1646734738772,1.0,2578.8,2578.6,0.3]
[1646734738975,0.5,2579.4,2578.6,1.27007]
[1646734739173,0.5,2579.4,2578.6,0.97007]
[1646734739572,0.5,2579.4,2578.7,0.9699224]
[1646734739772,0.5,2579.4,2579.1,1.04045893]
[1646734739974,1.0,2579.2,2579.1,1.04045893]
[1646734740173,1.5,2579.4,2578.9,0.96995]
[1646734740573,0.5,2579.4,2578.9,0.96995]
[1646734740774,1.0,2579.2,2578.9,0.96995]
[1646734741172,1.0,2579.3,2578.9,0.96995]
[1646734741576,1.0,2579.2,2579.0,1.03103057]
[1646734742015,1.04035806,2579.5,2579.0,1.03103057]
[1646734742617,0.00458083,2579.2,2579.0,1.03103057]
[1646734743520,1.0,2579.4,2579.0,1.03103057]
[1646734743721,0.00458083,2579.2,2579.1,0.02322633]
[1646734744721,0.04035806,2579.5,2579.1,0.02322633]
[1646734744922,0.00458083,2579.3,2579.1,0.02322633]
[1646734745121,0.00458083,2579.3,2579.1,3.52322633]
[1646734745320,0.00458083,2579.3,2579.1,4.49305633]
[1646734745765,0.04035806,2579.5,2579.1,5.76284773]
[1646734746164,0.00458083,2579.3,2579.1,5.76284773]
[1646734746363,0.00458083,2579.3,2579.1,2.26284773]
[1646734746565,0.00458083,2579.3,2579.1,3.23257773]
[1646734746765,0.00458083,2579.3,2579.2,0.5805]
[1646734746964,0.04035806,2579.5,2579.2,0.5805]
[1646734747364,0.00458083,2579.3,2579.2,0.5805]
[1646734748171,0.04035806,2579.5,2579.2,0.5805]
[1646734748768,0.00458083,2579.4,2579.2,0.64925096]
[1646734749068,0.00458083,2579.4,2579.3,2.52012]
[1646734749513,0.04035806,2579.5,2579.3,2.52012]
[1646734749714,0.04493889,2579.5,2579.3,2.52012]
[1646734750717,0.04035806,2579.5,2579.3,2.52012]
[1646734750914,0.04413539,2579.5,2579.3,2.52012]
[1646734751817,0.04035806,2579.5,2579.3,3.48996]
[1646734752017,0.04413539,2579.5,2579.3,3.48996]
[1646734753675,0.04413539,2579.5,2579.4,0.06865739]
[1646734753877,0.04413539,2579.5,2579.3,0.5805]
[1646734753878,5.0,2579.4,2579.3,0.5805]
[1646734754076,5.012945,2579.4,2579.3,0.36093998]
[1646734754275,16.882945,2579.4,2579.3,0.36093998]
[1646734754474,4.5,2579.3,2578.8,0.97031]
[1646734754675,11.87,2579.2,2578.8,0.97031]
[1646734754875,1.0,2578.8,2578.5,1.94056]
[1646734755076,1.0,2578.8,2577.5,4.6347]
[1646734755376,14.87,2578.7,2577.4,0.04645823]
[1646734755575,1.0,2578.3,2578.0,1.94094]
[1646734755880,1.0,2578.1,2578.0,1.94094]
[1646734756476,1.0,2578.1,2577.6,1.01642969]
[1646734756677,1.0,2578.1,2577.9,1.94101]
[1646734758330,1.0,2578.1,2577.8,0.97046]
[1646734758533,1.0,2578.1,2577.6,1.01642969]
[1646734758534,1.0,2578.1,2577.6,0.9705]
[1646734759032,13.4651471,2578.1,2577.4,0.0049169]
[1646734759231,1.3,2578.0,2576.8,0.9707]
[1646734759431,0.98812999,2577.7,2576.8,0.9707]
[1646734759831,0.98812999,2577.7,2577.5,0.01914051]
[1646734760232,14.17,2578.0,2577.5,4.051e-05]
[1646734760233,11.87,2577.8,2577.5,4.051e-05]
[1646734760432,11.87,2577.8,2576.0,2.32949]
[1646734760433,11.87,2577.6,2576.1,2.9587]
[1646734760666,11.87,2577.6,2577.4,0.00490781]
[1646734760667,12.87,2577.5,2577.4,0.00490781]
[1646734760868,1.0,2577.5,2577.4,0.00490781]
[1646734761068,2.0,2577.5,2577.4,0.00490781]
[1646734761467,2.9709,2577.5,2576.2,6.41248]
[1646734761665,2.9709,2577.5,2577.3,0.00490796]
[1646734761867,1.0,2577.4,2577.3,0.00490796]
[1646734762867,1.0,2577.4,2577.2,0.00494312]
[1646734762868,0.9709,2577.3,2577.2,0.00494312]
[1646734763571,1.9709,2577.3,2577.2,0.00494312]
[1646734763968,1.9709,2577.3,2576.4,0.97094]
[1646734764172,1.9709,2577.3,2577.1,0.00493361]
[1646734764419,0.9709,2577.3,2577.1,0.00493361]
[1646734764617,1.0,2577.2,2577.1,0.00493361]
[1646734765216,1.0,2577.2,2576.4,0.97083]
[1646734765619,1.0,2577.1,2576.4,0.97083]
[1646734766418,1.0,2577.2,2576.4,0.97083]
[1646734767021,1.0,2577.1,2576.4,0.97083]
[1646734767821,1.0,2577.1,2576.6,0.00521825]
[1646734768668,1.0,2577.1,2576.4,0.97083]
[1646734769069,1.0,2577.1,2576.7,0.00521809]
[1646734769870,1.0,2577.2,2576.6,0.02006748]
[1646734770069,1.0,2577.2,2576.8,0.00522469]
[1646734770570,1.0,2577.1,2576.8,0.00522469]
[1646734770769,1.0,2577.1,2576.8,2.469e-05]
[1646734770770,3.0,2577.0,2576.8,2.469e-05]
[1646734770974,3.0,2577.0,2575.9,3.88269]
[1646734770975,11.87,2576.8,2575.5,1.2042]
[1646734771173,12.336,2576.7,2575.5,4.7042]
[1646734771369,12.336,2576.7,2575.5,3.5]
[1646734771573,12.336,2576.7,2575.3,7.7581]
[1646734771574,1.0,2575.9,2575.3,4.7393]
[1646734771828,1.0,2575.9,2575.4,1.02624999]
[1646734772017,1.0,2575.9,2575.1,3.5]
[1646734772218,1.0,2575.9,2574.9,2.20761377]
[1646734772419,12.87,2575.9,2574.5,7.29]
[1646734772619,11.87,2575.6,2575.5,0.00390132]
[1646734773221,15.11147315,2575.6,2575.5,0.00390132]
[1646734773422,15.11147315,2575.6,2575.5,1.32e-06]
[1646734773423,18.99849615,2575.6,2575.5,1.32e-06]
[1646734773624,18.99849615,2575.6,2574.6,0.64708642]
[1646734773625,18.82620295,2575.6,2574.6,0.64708642]
[1646734773824,11.87,2574.9,2574.6,0.64708642]
[1646734774020,3.0,2575.0,2574.6,0.64708642]
[1646734774021,11.87,2574.7,2574.6,0.64708642]
[1646734774223,11.87,2574.7,2574.6,0.11318642]
[1646734774422,13.336,2574.7,2574.6,0.11318642]
[1646734775024,0.9721,2574.5,2573.8,0.3877]
[1646734775222,0.9721,2574.5,2573.7,1.0027709]
[1646734775425,1.9721,2574.5,2573.9,0.49986526]
[1646734776269,1.9721,2574.5,2574.1,0.00371913]
[1646734776470,1.0,2574.5,2574.1,0.00371913]
[1646734777076,1.0,2574.5,2574.0,0.49986526]
[1646734777572,1.0,2574.5,2574.2,0.00509729]
[1646734778374,1.0,2574.6,2573.6,0.49986526]
[1646734778375,13.336,2574.4,2573.6,0.49986526]
[1646734778574,3.0,2574.3,2574.2,0.00509721]
[1646734778782,12.336,2574.3,2574.2,0.00509721]
[1646734778979,0.466,2574.3,2574.2,0.00509721]
[1646734779177,1.466,2574.3,2574.2,0.00509721]
[1646734779448,1.466,2574.3,2574.1,0.02060934]
[1646734779851,0.466,2574.3,2574.1,0.02574651]
[1646734780248,1.0,2574.2,2574.1,0.02574651]
[1646734780646,1.0,2574.2,2574.1,0.02060934]
[1646734781055,1.0,2574.4,2574.3,0.49986526]
[1646734781248,1.0,2574.7,2574.3,0.49986526]
[1646734781747,1.17464606,2574.8,2574.3,0.49986526]
[1646734781748,2.17464606,2574.8,2574.3,0.49986526]
[1646734782149,2.17464606,2574.8,2574.4,0.00513681]
[1646734782349,1.0,2574.5,2574.4,0.00513681]
[1646734782649,13.84205,2574.5,2574.4,0.00513681]
[1646734783275,13.84205,2574.5,2574.3,0.49986526]
[1646734783276,1.0,2574.4,2574.3,0.49986526]
[1646734783576,2.0,2574.4,2574.3,0.50495732]
[1646734783776,2.0,2574.4,2574.2,1.69079697]
[1646734783984,9.0,2574.3,2574.2,1.69079697]
[1646734784175,10.466,2574.3,2574.2,1.69079697]
[1646734784375,17.8081298,2574.3,2574.2,1.69079697]
[1646734784578,6.9381298,2574.3,2574.2,1.69079697]
[1646734784780,2.466,2574.3,2574.2,1.69079697]
[1646734785179,1.466,2574.3,2574.2,1.69079697]
[1646734785379,1.0,2574.5,2574.2,1.69079697]
[1646734785781,1.0,2574.7,2574.2,1.69079697]
[1646734785977,1.20280606,2574.8,2574.2,1.69079697]
[1646734786179,1.0,2574.5,2574.2,1.69079697]
[1646734786375,1.0,2574.3,2574.2,1.69079697]
[1646734787034,1.0,2574.3,2574.2,1.69623168]
[1646734787636,4.5,2574.3,2574.2,1.69623168]
[1646734788037,4.5,2574.3,2574.2,1.69079697]
[1646734788335,2.0,2574.3,2574.2,1.69079697]
[1646734788937,1.0,2574.3,2574.2,1.69079697]
[1646734789137,1.5853161,2574.3,2574.2,1.69079697]
[1646734789337,0.5853161,2574.3,2574.2,1.69079697]
[1646734789538,1.5853161,2574.3,2574.2,1.69079697]
[1646734789743,1.0,2574.3,2574.2,1.69079697]
[1646734789939,0.466,2574.7,2574.2,1.69079697]
[1646734789940,1.0,2574.4,2574.2,1.69079697]
[1646734790139,1.0,2574.3,2574.2,1.69079697]
[1646734790566,0.466,2574.7,2574.2,1.69623165]
[1646734790567,1.0,2574.5,2574.2,1.69623165]
[1646734790765,1.0,2574.4,2574.2,1.69623165]
[1646734791167,1.0,2574.5,2574.2,1.69623165]
[1646734791566,1.0,2574.5,2574.2,1.69079697]
[1646734791768,1.0,2574.4,2574.2,1.69623165]
[1646734792169,1.0,2574.9,2574.2,1.69623165]
[1646734792377,1.57816019,2575.0,2574.2,1.69623165]
[1646734792571,1.87816019,2575.0,2574.2,1.69623165]
[1646734792774,1.0,2574.7,2574.2,1.69079697]
[1646734792972,1.0,2574.5,2574.2,1.69623179]
[1646734793773,1.0,2574.5,2574.3,0.0387314]
[1646734794423,1.84459151,2575.0,2573.8,0.02174167]
[1646734794424,11.87,2574.2,2573.8,0.02174167]
[1646734794622,11.87,2574.2,2572.8,0.3877]
[1646734794623,5.5,2573.9,2572.8,0.3877]
[1646734794823,0.2029978,2573.2,2571.9,0.59155982]
[1646734795028,0.2029978,2573.2,2571.9,0.0064768]
[1646734795029,0.9727132,2572.8,2571.9,0.0064768]
[1646734795224,14.8154264,2573.0,2571.9,0.0001188]
[1646734795225,15.37,2572.7,2571.9,0.0001188]
[1646734795427,11.87,2572.7,2571.9,0.0001188]
[1646734795827,1.0,2572.0,2571.9,0.0001188]
[1646734796224,1.94561,2572.5,2571.9,0.0001188]
[1646734796225,1.0,2572.1,2571.9,0.0001188]
[1646734796627,1.0,2572.4,2571.9,0.0001188]
[1646734797026,1.0,2572.6,2571.9,0.0001188]
[1646734797227,1.0,2572.8,2571.9,1.9451988]
[1646734797427,1.0,2572.8,2571.9,2.9178088]
[1646734797629,1.0,2573.0,2571.9,0.0001188]
[1646734797630,1.0,2572.6,2571.9,0.0001188]
[1646734798080,1.0,2572.8,2571.9,0.0001188]
[1646734798274,1.0,2572.8,2571.9,0.86966468]
[1646734798275,1.0,2572.6,2571.9,0.86966468]
[1646734798472,12.84262,2572.8,2571.9,0.86966468]
[1646734798473,1.0,2572.3,2571.9,0.86966468]
[1646734799274,1.0,2572.3,2572.1,0.00541881]
[1646734799673,1.4387032,2572.9,2572.1,0.02414372]
[1646734799674,1.0,2572.5,2572.1,0.02414372]
[1646734799878,0.67130421,2572.5,2572.1,0.14627474]
[1646734800077,0.67130421,2573.0,2572.3,0.12754983]
[1646734800278,0.3494,2573.1,2572.4,0.12754983]
[1646734800475,0.3494,2573.1,2572.4,3.62754983]
[1646734800675,0.3494,2573.1,2572.4,5.57205983]
[1646734800874,0.3494,2573.1,2572.4,2.07205983]
[1646734801075,0.3494,2573.1,2572.9,0.12754983]
[1646734801478,0.99930421,2573.4,2573.2,0.12754983]
[1646734802617,0.99930421,2573.4,2573.2,0.132967]
[1646734802819,1.97171421,2573.4,2573.2,0.132967]
[1646734803426,0.99930421,2573.3,2573.2,0.132967]
[1646734803622,0.99930421,2573.3,2573.2,0.12754983]
[1646734803821,0.99930421,2573.3,2573.2,0.13288895]
[1646734804424,1.76943144,2573.9,2573.4,0.12754983]
[1646734804625,8.3503,2574.4,2573.5,0.97208]
[1646734804627,0.00468328,2574.0,2573.5,0.97208]
[1646734804822,3.4076,2574.7,2573.5,0.97208]
[1646734804823,7.1935,2575.1,2573.5,0.12754983]
[1646734805022,1.0,2574.2,2573.7,0.12754983]
[1646734805223,0.00468319,2574.0,2573.7,0.12754983]
[1646734805429,0.00468319,2574.0,2573.9,0.12754983]
[1646734806079,0.68044,2574.4,2573.9,0.12754983]
[1646734806281,0.00468428,2574.1,2573.9,0.12754983]
[1646734806481,0.00468428,2574.1,2573.7,0.13288827]
[1646734806683,12.87468428,2574.1,2573.7,0.13288827]
[1646734806884,1.0,2573.8,2573.7,0.13288827]
[1646734807084,2.14661,2573.8,2573.7,0.13288827]
[1646734807283,14.01661,2573.8,2573.7,0.12754983]
[1646734807483,14.01661,2573.8,2573.2,0.12754983]
[1646734807683,14.89630821,2573.8,2573.2,0.12754983]
[1646734807884,1.0,2573.3,2573.2,0.12754983]
[1646734808284,1.0,2573.4,2573.2,0.12754983]
[1646734808684,1.0,2573.6,2573.2,0.12754983]
[1646734808986,1.0,2573.8,2573.2,0.12754983]
[1646734809619,12.87,2573.8,2573.2,0.12754983]
[1646734809818,1.0,2573.7,2573.2,0.12754983]
[1646734810719,11.87,2573.6,2573.2,0.12754983]
[1646734811018,11.87,2573.6,2573.3,0.0054132]
[1646734811621,1.68062,2573.7,2573.3,0.0054132]
[1646734811622,12.87,2573.5,2573.3,0.0054132]
[1646734811835,11.87,2573.5,2573.3,0.0054132]
[1646734812022,3.5,2573.6,2573.2,0.12754983]
[1646734812023,15.37,2573.4,2573.2,0.12754983]
[1646734812222,15.37,2573.3,2573.2,0.12754983]
[1646734812423,16.37,2573.3,2573.2,0.12754983]
[1646734812623,17.38074469,2573.3,2573.2,0.12754983]
[1646734813271,17.38074469,2573.3,2572.0,1.94492]
[1646734813272,18.05082,2573.2,2572.0,1.94492]
[1646734813470,11.87,2573.0,2572.7,0.02165728]
[1646734813670,11.87,2572.8,2572.7,5.728e-05]
[1646734814072,16.37,2572.8,2572.7,5.728e-05]
[1646734814271,14.06556751,2572.8,2572.7,5.728e-05]
[1646734814572,1.02425866,2572.5,2571.5,0.9659039]
[1646734814778,1.02425866,2572.5,2571.6,1.58634678]
[1646734814973,1.0,2572.3,2571.6,1.58634678]
[1646734815587,1.0,2572.8,2571.7,0.9726]
[1646734815780,1.0,2572.8,2571.8,1.59017453]
[1646734815978,1.0,2572.6,2571.9,1.58634678]
[1646734816176,1.0,2572.6,2571.8,0.00382775]
[1646734816378,1.0,2572.8,2571.8,0.00382775]
[1646734816820,1.0,2572.6,2571.9,0.97252]
[1646734817016,1.0,2572.6,2572.0,1.58621692]
[1646734817219,1.0,2572.8,2572.2,0.00523265]
[1646734817617,1.0,2572.6,2572.2,0.00523265]
[1646734818019,1.0,2572.8,2571.9,1.94507]
[1646734818222,1.0,2572.8,2572.3,0.00523251]
[1646734818625,1.0,2572.8,2572.4,1.58603964]
[1646734819022,1.0,2572.8,2572.5,0.96509359]
[1646734819222,1.0,2572.8,2572.6,1.58603964]
[1646734819423,5.7094,2574.2,2572.7,5.5]
[1646734819424,0.4169,2573.9,2572.7,5.5]
[1646734819624,0.00473783,2573.0,2572.8,1.58603964]
[1646734820024,3.783e-05,2573.0,2572.9,1.58603964]
[1646734820427,0.3889,2574.4,2572.8,1.58603964]
[1646734820672,0.58332,2574.0,2573.2,1.20160927]
[1646734821080,0.58332,2574.0,2572.8,0.97221]
[1646734821283,0.58332,2574.0,2573.0,0.97216]
[1646734821479,3.5,2574.1,2573.0,0.97216]
[1646734821678,3.5,2574.3,2573.0,0.97216]
[1646734821981,15.37,2574.3,2573.0,0.97216]
[1646734822178,1.0,2573.7,2573.0,1.94431]
[1646734822582,1.0,2573.7,2573.0,0.97215]
[1646734823983,1.0,2573.7,2573.4,0.01669018]
[1646734824418,1.16669,2574.1,2573.4,0.01669018]
[1646734824419,0.3884,2574.3,2573.4,0.01669018]
[1646734824420,0.00472652,2573.5,2573.4,0.01669018]
[1646734824621,0.00472652,2573.5,2573.1,0.9775226]
[1646734824819,0.00472652,2573.5,2572.9,3.27281548]
[1646734825019,0.00472652,2573.5,2573.0,1.5856858]
[1646734825225,1.0,2573.8,2573.0,2.5577858]
[1646734825424,1.0,2573.7,2573.0,0.9721]
[1646734825624,0.00472652,2573.3,2573.1,2.55767867]
[1646734825824,3.5,2574.0,2573.3,0.00932715]
[1646734826128,1.0,2574.0,2573.3,0.00932715]
[1646734826324,1.0,2574.1,2573.3,0.00932715]
[1646734826723,3.5,2574.3,2573.5,0.97196]
[1646734826724,1.0,2574.2,2573.5,0.97196]
[1646734826926,1.0,2574.3,2573.5,0.97196]
[1646734827427,0.56923883,2574.6,2573.9,1.18216364]
[1646734827428,1.0,2574.6,2573.9,1.18216364]
[1646734827826,3.5,2574.6,2573.3,4.91148715]
[1646734828067,1.0,2574.5,2573.6,1.94376]
[1646734828472,1.0,2574.3,2573.6,1.94376]
[1646734829071,0.0047147,2574.1,2573.6,1.94376]
[1646734829272,0.0047147,2574.1,2573.7,1.14137676]
[1646734829771,0.0047147,2574.1,2573.6,1.94376]
[1646734830174,1.0,2574.3,2573.3,3.89708715]
[1646734830372,0.0047147,2574.0,2573.3,3.89708715]
[1646734830774,0.0047147,2574.0,2573.4,0.87971616]
[1646734831373,1.0,2574.3,2573.4,0.87971616]
[1646734831832,0.0047147,2573.8,2573.6,0.97197]
[1646734832421,1.0,2574.4,2573.6,0.97197]
[1646734832821,0.0047147,2573.8,2573.6,0.97197]
[1646734833425,0.0047147,2573.8,2573.4,0.87971616]
[1646734833625,3.5,2574.3,2573.4,0.87971616]
[1646734833829,3.5,2574.3,2573.3,3.89708715]
[1646734833830,4.5,2574.3,2573.3,0.00932715]
[1646734834025,0.0047147,2573.8,2573.3,0.00932715]
[1646734834827,4.5,2574.3,2573.3,0.00932715]
[1646734835028,1.0,2574.3,2573.3,1.15025181]
[1646734835231,0.4860237,2574.6,2573.4,1.58543014]
[1646734835232,0.0047147,2573.7,2573.4,1.58543014]
[1646734835431,1.0,2574.4,2573.5,5.5]
[1646734835674,0.01885199,2574.6,2573.6,1.58543014]
[1646734835875,0.01885199,2574.6,2573.6,3.52873014]
[1646734836075,3.5,2575.0,2574.4,1.06327552]
[1646734836277,1.11895962,2575.2,2574.4,1.06327552]
[1646734836278,0.11895962,2575.2,2574.4,1.06327552]
[1646734836480,0.59480346,2575.2,2574.4,1.06327552]
[1646734836678,4.5,2575.5,2574.4,1.06327552]
[1646734836878,1.0,2575.5,2574.4,1.06327552]
[1646734837077,1.0,2575.7,2574.4,3.00632552]
[1646734837282,1.0,2575.7,2574.8,0.97133]
[1646734837482,1.0,2575.7,2575.0,0.9714]
[1646734837680,0.00141441,2575.1,2575.0,0.9714]
[1646734837881,0.00141441,2575.1,2574.7,1.94265]
[1646734838479,1.94786922,2575.7,2574.7,1.94265]
[1646734838680,1.0,2575.7,2574.7,1.94265]
[1646734838881,0.00470292,2575.0,2574.8,5.4428]
[1646734839085,0.00470292,2575.0,2574.8,1.9428]
[1646734839366,0.00470292,2575.0,2574.8,5.4428]
[1646734839541,0.00470292,2575.0,2574.8,1.9428]
[1646734839742,1.0,2575.7,2574.8,1.9428]
[1646734839942,0.00470292,2575.0,2574.9,3.5]